fUST/lending_fUST_20250625
["ID","MTS","AMOUNT","RATE_DAILY","PERIOD"]
[367527230,1750845041191,-460.0,0.00016862,2]
[367527231,1750845041200,-363.82350208,0.00016862,2]
[367527232,1750845041213,-96.17649792,0.00016862,2]
[367527233,1750845041223,-466.14345709,0.00016862,2]
[367527234,1750845041233,-451.72521277,0.00016862,2]
[367527235,1750845041245,-8.4606901,0.00016862,2]
[367527236,1750845041254,-460.0,0.00016862,2]
[367527237,1750845041265,-550.8,0.00016862,2]
[367527238,1750845041275,-460.0,0.00016862,2]
[367527239,1750845041285,-571.16035282,0.00016862,2]
[367527240,1750845041295,-206.52037536,0.00016862,2]
[367527241,1750845041304,-460.0,0.00016862,2]
[367527242,1750845041314,-396.03847777,0.00016862,2]
[367527243,1750845041325,-63.96152223,0.00016862,2]
[367527244,1750845041335,-460.0,0.00016862,2]
[367527245,1750845041345,-460.0,0.00016862,2]
[367527246,1750845041354,-460.0,0.00016862,2]
[367527247,1750845041363,-460.0,0.00016862,2]
[367527248,1750845041372,-460.0,0.00016862,2]
[367527249,1750845041381,-460.0,0.00016862,2]
[367527250,1750845041391,-367.57912106,0.00016862,2]
[367527251,1750845041403,-92.42087894,0.00016862,2]
[367527252,1750845041412,-460.0,0.00016862,2]
[367527253,1750845041421,-460.37459326,0.00016862,2]
[367527254,1750845041430,-460.0,0.00016862,2]
[367527255,1750845041439,-460.0,0.00016862,2]
[367527256,1750845041448,-460.0,0.00016862,2]
[367527257,1750845041458,-460.0,0.00016862,2]
[367527258,1750845041467,-500.0,0.00016862,2]
[367527259,1750845041477,-460.0,0.00016862,2]
[367527260,1750845041487,-500.0,0.00016862,2]
[367527261,1750845041496,-460.0,0.00016862,2]
[367527262,1750845041505,-460.0,0.00016862,2]
[367527263,1750845041514,-460.0,0.00016862,2]
[367527264,1750845041523,-460.0,0.00016862,2]
[367527265,1750845041533,-460.0,0.00016862,2]
[367527266,1750845041543,-460.0,0.00016862,2]
[367527267,1750845041552,-460.0,0.00016862,2]
[367527268,1750845041561,-460.0,0.00016862,2]
[367527269,1750845041571,-460.0,0.00016862,2]
[367527270,1750845041580,-460.0,0.00016862,2]
[367527271,1750845041590,-460.0,0.00016862,2]
[367527272,1750845041599,-460.0,0.00016862,2]
[367527273,1750845041608,-500.0,0.00016862,2]
[367527274,1750845041617,-460.0,0.00016862,2]
[367527275,1750845041626,-460.0,0.00016862,2]
[367527276,1750845041636,-460.0,0.00016862,2]
[367527277,1750845041645,-460.0,0.00016862,2]
[367527278,1750845041654,-460.0,0.00016862,2]
[367527279,1750845041663,-466.09,0.00016862,2]
[367527280,1750845041672,-460.0,0.00016862,2]
[367527281,1750845041681,-460.0,0.00016862,2]
[367527282,1750845041690,-460.0,0.00016862,2]
[367527283,1750845041699,-460.0,0.00016862,2]
[367527284,1750845041708,-6205.49436323,0.00016862,2]
[367527285,1750845041717,-460.0,0.00016862,2]
[367527286,1750845041727,-460.0,0.00016862,2]
[367527287,1750845041736,-460.0,0.00016862,2]
[367527288,1750845041746,-460.0,0.00016862,2]
[367527289,1750845041756,-460.0,0.00016862,2]
[367527290,1750845041766,-460.0,0.00016862,2]
[367527291,1750845041776,-460.0,0.00016862,2]
[367527292,1750845041785,-460.0,0.00016862,2]
[367527293,1750845041795,-460.0,0.00016862,2]
[367527294,1750845041806,-460.0,0.00016862,2]
[367527295,1750845041815,-460.0,0.00016862,2]
[367527296,1750845041827,-195.56591412,0.00016863,2]
[367527297,1750845041839,-461.19096883,0.00016863,2]
[367527298,1750845041852,-460.0,0.00016863,2]
[367527299,1750845041865,-308.14577533,0.00016863,2]
[367527300,1750845041874,-460.0,0.00016863,2]
[367527301,1750845041884,-460.0,0.00016863,2]
[367527302,1750845041893,-460.0,0.00016863,2]
[367527303,1750845041902,-503.28,0.00016863,2]
[367527304,1750845041912,-379.50228677,0.00016863,2]
[367527305,1750845041922,-470.23712706,0.00016863,2]
[367527306,1750845041931,-500.0,0.00016863,2]
[367527307,1750845041940,-500.0,0.00016863,2]
[367527308,1750845041949,-460.0,0.00016864,2]
[367527309,1750845041959,-460.0,0.00016864,2]
[367527310,1750845041968,-460.0,0.00016864,2]
[367527311,1750845041978,-460.0,0.00016864,2]
[367527312,1750845041987,-460.0,0.00016864,2]
[367527313,1750845041997,-460.0,0.00016864,2]
[367527314,1750845042008,-460.0,0.00016864,2]
[367527315,1750845042018,-460.0,0.00016864,2]
[367527316,1750845042029,-460.0,0.00016864,2]
[367527317,1750845042038,-500.0,0.00016865,2]
[367527318,1750845042047,-151.0,0.000169,2]
[367527319,1750845042058,-151.0,0.000171,2]
[367527320,1750845042067,-5926.39861858,0.00017107,2]
[367527321,1750845042078,-460.0,0.00017133,2]
[367527322,1750845042088,-460.0,0.00017133,2]
[367527323,1750845042098,-460.0,0.00017133,2]
[367527324,1750845042107,-322.96,0.00017133,2]
[367527325,1750845042116,-460.0,0.00017133,2]
[367527326,1750845042126,-460.0,0.00017133,2]
[367527327,1750845042136,-1810.61,0.00017133,2]
[367527328,1750845042145,-460.0,0.00017133,2]
[367527329,1750845042154,-460.0,0.00017133,2]
[367527330,1750845042163,-460.0,0.00017133,2]
[367527331,1750845042173,-1769.19,0.00017133,2]
[367527332,1750845042182,-522.63,0.00017133,2]
[367527333,1750845042191,-1268.36,0.00017133,2]
[367527334,1750845042199,-460.0,0.00017133,2]
[367527335,1750845042208,-460.0,0.00017133,2]
[367527337,1750845042218,-460.0,0.00017133,2]
[367527338,1750845042227,-331.93453922,0.00017133,2]
[367527339,1750845042245,-1295.58,0.00017133,2]
[367527340,1750845042254,-513.43,0.00017133,2]
[367527341,1750845042264,-460.0,0.00017133,2]
[367527342,1750845042273,-491.11,0.00017133,2]
[367527343,1750845042282,-460.0,0.00017133,2]
[367527344,1750845042291,-460.0,0.00017133,2]
[367527345,1750845042301,-1436.98,0.00017133,2]
[367527346,1750845042314,-469.78054021,0.00017133,2]
[367527347,1750845042323,-464.11284791,0.00017133,2]
[367527348,1750845042333,-418.78,0.00017134,2]
[367527350,1750845042342,-440.1438782,0.00017134,2]
[367527352,1750845042351,-525.34658901,0.00017134,2]
[367527353,1750845042360,-460.0,0.00017134,2]
[367527354,1750845042369,-460.0,0.00017134,2]
[367527355,1750845042379,-460.0,0.00017134,2]
[367527356,1750845042388,-474.80013258,0.00017134,2]
[367527357,1750845042397,-460.0,0.00017134,2]
[367527358,1750845042406,-460.0,0.00017134,2]
[367527359,1750845042415,-4462.47,0.00017134,2]
[367527360,1750845042424,-458.65062073,0.00017134,2]
[367527361,1750845042433,-460.0,0.00017134,2]
[367527362,1750845042442,-581.72,0.00017134,2]
[367527363,1750845042451,-529.12,0.00017134,2]
[367527365,1750845042460,-460.0,0.00017134,2]
[367527366,1750845042469,-460.0,0.00017134,2]
[367527367,1750845042479,-460.0,0.00017134,2]
[367527368,1750845042488,-460.0,0.00017134,2]
[367527369,1750845042497,-536.63576816,0.00017134,2]
[367527370,1750845042506,-460.0,0.00017134,2]
[367527371,1750845042515,-460.0,0.00017134,2]
[367527372,1750845042524,-595.16,0.00017134,2]
[367527373,1750845042533,-929.87,0.00017135,2]
[367527374,1750845042542,-460.0,0.00017135,2]
[367527375,1750845042551,-460.0,0.00017135,2]
[367527376,1750845042560,-460.0,0.00017135,2]
[367527377,1750845042569,-618.94,0.00017135,2]
[367527378,1750845042579,-460.0,0.00017135,2]
[367527379,1750845042588,-1512.44,0.00017135,2]
[367527380,1750845042597,-3230.87,0.00017135,2]
[367527381,1750845042607,-460.0,0.00017135,2]
[367527382,1750845042616,-756.04,0.00017135,2]
[367527383,1750845042626,-1220.5,0.00017135,2]
[367527384,1750845042635,-480.23,0.00017135,2]
[367527385,1750845042648,-460.0,0.00017136,2]
[367527386,1750845042657,-460.0,0.00017136,2]
[367527387,1750845042666,-460.0,0.00017136,2]
[367527388,1750845042676,-460.0,0.00017136,2]
[367527389,1750845042685,-460.0,0.00017136,2]
[367527390,1750845042695,-416.04717881,0.00017136,2]
[367527391,1750845042704,-647.14,0.00017136,2]
[367527392,1750845042713,-453.12734487,0.00017136,2]
[367527393,1750845042723,-460.0,0.00017136,2]
[367527394,1750845042733,-460.0,0.00017136,2]
[367527395,1750845042741,-460.0,0.00017136,2]
[367527396,1750845042751,-460.0,0.00017136,2]
[367527398,1750845042760,-460.0,0.00017136,2]
[367527399,1750845042769,-460.0,0.00017136,2]
[367527401,1750845042778,-460.0,0.00017136,2]
[367527403,1750845042788,-460.0,0.00017136,2]
[367527404,1750845042797,-522.2,0.00017136,2]
[367527405,1750845042807,-460.0,0.00017136,2]
[367527407,1750845042816,-460.0,0.00017136,2]
[367527409,1750845042825,-460.0,0.00017136,2]
[367527411,1750845042835,-460.0,0.00017136,2]
[367527413,1750845042844,-460.0,0.00017136,2]
[367527415,1750845042853,-460.0,0.00017136,2]
[367527417,1750845042863,-460.0,0.00017138,2]
[367527419,1750845042872,-460.0,0.00017138,2]
[367527421,1750845042881,-460.0,0.00017138,2]
[367527423,1750845042890,-500.0,0.00017243,2]
[367527425,1750845042900,-48.79106101,0.00017311,2]
[367527428,1750845042917,-2116.59185153,0.00017311,2]
[367527430,1750845042926,-151.0,0.000174,2]
[367527432,1750845042935,-460.0,0.00017407,2]
[367527434,1750845042944,-319.56,0.00017407,2]
[367527436,1750845042953,-1810.61,0.00017407,2]
[367527438,1750845042963,-362.73812907,0.00017407,2]
[367527441,1750845042972,-460.0,0.00017407,2]
[367527444,1750845042982,-1769.19,0.00017407,2]
[367527447,1750845042991,-522.63,0.00017407,2]
[367527449,1750845043000,-1268.36,0.00017407,2]
[367527451,1750845043009,-460.0,0.00017407,2]
[367527453,1750845043019,-460.0,0.00017407,2]
[367527455,1750845043027,-460.0,0.00017407,2]
[367527458,1750845043036,-1295.58,0.00017407,2]
[367527460,1750845043045,-513.43,0.00017407,2]
[367527462,1750845043054,-460.0,0.00017407,2]
[367527464,1750845043063,-491.11,0.00017407,2]
[367527466,1750845043072,-460.0,0.00017407,2]
[367527468,1750845043081,-460.0,0.00017407,2]
[367527470,1750845043090,-1436.98,0.00017407,2]
[367527472,1750845043099,-460.0,0.00017408,2]
[367527474,1750845043108,-460.0,0.00017408,2]
[367527476,1750845043117,-460.0,0.00017408,2]
[367527478,1750845043126,-221.81,0.00017408,2]
[367527480,1750845043135,-460.0,0.00017408,2]
[367527482,1750845043144,-4462.47,0.00017408,2]
[367527484,1750845043154,-460.0,0.00017408,2]
[367527486,1750845043163,-529.12,0.00017408,2]
[367527488,1750845043172,-173.4865016,0.00017408,2]
[367527490,1750845043182,-460.0,0.00017408,2]
[367527492,1750845043192,-460.0,0.00017408,2]
[367527494,1750845043201,-460.0,0.00017408,2]
[367527496,1750845043210,-460.0,0.00017408,2]
[367527498,1750845043219,-929.87,0.00017409,2]
[367527500,1750845043228,-460.0,0.00017409,2]
[367527502,1750845043237,-460.0,0.00017409,2]
[367527504,1750845043246,-460.0,0.00017409,2]
[367527506,1750845043256,-618.94,0.00017409,2]
[367527508,1750845043265,-460.0,0.00017409,2]
[367527510,1750845043274,-1512.44,0.00017409,2]
[367527512,1750845043284,-3230.87,0.00017409,2]
[367527514,1750845043294,-460.0,0.00017409,2]
[367527516,1750845043303,-756.04,0.00017409,2]
[367527518,1750845043312,-1220.5,0.00017409,2]
[367527520,1750845043321,-480.23,0.00017409,2]
[367527522,1750845043330,-245.4,0.0001741,2]
[367527524,1750845043339,-460.0,0.0001741,2]
[367527526,1750845043348,-647.14,0.0001741,2]
[367527528,1750845043358,-593.57,0.0001741,2]
[367527543,1750845043486,-170.4,0.0001741,2]
[367527545,1750845043495,-460.0,0.0001741,2]
[367527547,1750845043505,-460.0,0.0001741,2]
[367527549,1750845043514,-460.0,0.0001741,2]
[367527551,1750845043523,-460.0,0.0001741,2]
[367527553,1750845043533,-371.44,0.0001741,2]
[367527555,1750845043544,-593.79,0.0001741,2]
[367527557,1750845043554,-460.0,0.0001741,2]
[367527559,1750845043563,-500.0,0.00017532,2]
[367527561,1750845043572,-500.0,0.00017547,2]
[367527563,1750845043582,-613.82778567,0.00017547,2]
[367527565,1750845043591,-500.0,0.00017547,2]
[367527567,1750845043600,-500.0,0.00017547,2]
[367527569,1750845043608,-500.0,0.00017547,2]
[367527571,1750845043618,-326.66838517,0.00017547,2]
[367527573,1750845043627,-621.38510807,0.00017547,2]
[367527575,1750845043636,-500.0,0.00017547,2]
[367527577,1750845043645,-500.0,0.00017568,2]
[367527579,1750845043654,-500.0,0.00017568,2]
[367527581,1750845043664,-614.18597854,0.00017568,2]
[367527583,1750845043673,-500.0,0.00017568,2]
[367527585,1750845043682,-377.46271169,0.00017571,2]
[367527587,1750845043691,-500.0,0.00017571,2]
[367527589,1750845043700,-500.0,0.00017571,2]
[367527591,1750845043709,-500.0,0.00017592,2]
[367527593,1750845043718,-500.92557149,0.00017592,2]
[367527595,1750845043727,-460.0,0.00017681,2]
[367527596,1750845043736,-1810.61,0.00017681,2]
[367527598,1750845043746,-544.68,0.00017681,2]
[367527600,1750845043755,-1769.19,0.00017681,2]
[367527602,1750845043764,-522.63,0.00017681,2]
[367527604,1750845043773,-1268.36,0.00017681,2]
[367527606,1750845043783,-460.0,0.00017681,2]
[367527607,1750845043793,-272.57,0.00017681,2]
[367527608,1750845043802,-477.03,0.00017681,2]
[367527609,1750845043811,-1295.58,0.00017681,2]
[367527610,1750845043821,-513.43,0.00017681,2]
[367527611,1750845043830,-460.0,0.00017681,2]
[367527612,1750845043839,-491.11,0.00017681,2]
[367527613,1750845043848,-460.0,0.00017681,2]
[367527614,1750845043857,-460.0,0.00017681,2]
[367527615,1750845043866,-1436.98,0.00017681,2]
[367527616,1750845043875,-460.0,0.00017682,2]
[367527617,1750845043884,-460.0,0.00017682,2]
[367527618,1750845043893,-460.0,0.00017682,2]
[367527619,1750845043902,-460.0,0.00017682,2]
[367527620,1750845043911,-4462.47,0.00017682,2]
[367527621,1750845043920,-460.0,0.00017682,2]
[367527622,1750845043929,-529.12,0.00017682,2]
[367527623,1750845043938,-460.0,0.00017682,2]
[367527624,1750845043947,-460.0,0.00017682,2]
[367527625,1750845043956,-460.0,0.00017682,2]
[367527627,1750845043966,-460.0,0.00017682,2]
[367527628,1750845043975,-929.87,0.00017683,2]
[367527629,1750845043984,-460.0,0.00017683,2]
[367527631,1750845043993,-460.0,0.00017683,2]
[367527633,1750845044003,-460.0,0.00017683,2]
[367527634,1750845044012,-618.94,0.00017683,2]
[367527635,1750845044022,-460.0,0.00017683,2]
[367527636,1750845044032,-1512.44,0.00017683,2]
[367527637,1750845044042,-3230.87,0.00017683,2]
[367527638,1750845044052,-460.0,0.00017683,2]
[367527640,1750845044061,-756.04,0.00017683,2]
[367527642,1750845044070,-1220.5,0.00017683,2]
[367527644,1750845044079,-480.23,0.00017683,2]
[367527645,1750845044089,-460.0,0.00017684,2]
[367527646,1750845044098,-647.14,0.00017684,2]
[367527647,1750845044107,-460.0,0.00017684,2]
[367527648,1750845044116,-355.7,0.00017684,2]
[367527649,1750845044126,-334.58,0.00017684,2]
[367527650,1750845044136,-325.48489201,0.00017684,2]
[367527651,1750845044146,-151.0,0.000177,2]
[367527652,1750845044155,-293.0,0.00017722,2]
[367527653,1750845044165,-973.46789211,0.00017727,2]
[367527654,1750845044174,-500.0,0.00017735,2]
[367527655,1750845044184,-500.0,0.00017754,2]
[367527656,1750845044194,-500.0,0.00017754,2]
[367527657,1750845044203,-500.55881292,0.00017754,2]
[367527658,1750845044213,-1000.0,0.00017791,2]
[367527659,1750845044222,-2165.38291254,0.00017859,2]
[367527660,1750845044231,-151.0,0.00017862,2]
[367527661,1750845044240,-198.0,0.00017862,2]
[367527662,1750845044250,-198.0,0.00017862,2]
[367527663,1750845044260,-198.0,0.00017889,2]
[367527664,1750845044269,-12997.8258323,0.000179,2]
[367527665,1750845044278,-1151.2109995,0.00017909,2]
[367527666,1750845044288,-500.0,0.00017916,2]
[367527667,1750845044298,-500.0,0.00017943,2]
[367527668,1750845044308,-460.0,0.00017955,2]
[367527669,1750845044317,-1810.61,0.00017955,2]
[367527670,1750845044326,-1769.19,0.00017955,2]
[367527671,1750845044337,-522.63,0.00017955,2]
[367527672,1750845044347,-1268.36,0.00017955,2]
[367527673,1750845044358,-460.0,0.00017955,2]
[367527674,1750845044367,-1295.58,0.00017955,2]
[367527675,1750845044377,-513.43,0.00017955,2]
[367527676,1750845044388,-298.1,0.00017955,2]
[367527677,1750845044397,-491.11,0.00017955,2]
[367527678,1750845044407,-285.74,0.00017955,2]
[367527679,1750845044416,-460.0,0.00017955,2]
[367527680,1750845044426,-1436.98,0.00017955,2]
[367527681,1750845044436,-460.0,0.00017956,2]
[367527682,1750845044445,-423.18,0.00017956,2]
[367527683,1750845044456,-460.0,0.00017956,2]
[367527684,1750845044466,-4462.47,0.00017956,2]
[367527685,1750845044476,-460.0,0.00017956,2]
[367527686,1750845044485,-529.12,0.00017956,2]
[367527687,1750845044494,-460.0,0.00017956,2]
[367527688,1750845044504,-415.29340987,0.00017956,2]
[367527689,1750845044513,-460.0,0.00017956,2]
[367527690,1750845044523,-460.0,0.00017956,2]
[367527691,1750845044533,-929.87,0.00017957,2]
[367527692,1750845044542,-460.0,0.00017957,2]
[367527693,1750845044552,-459.9,0.00017957,2]
[367527694,1750845044563,-460.0,0.00017957,2]
[367527695,1750845044572,-618.94,0.00017957,2]
[367527696,1750845044581,-460.0,0.00017957,2]
[367527697,1750845044592,-1512.44,0.00017957,2]
[367527698,1750845044601,-3230.87,0.00017957,2]
[367527699,1750845044610,-212.92,0.00017957,2]
[367527700,1750845044620,-756.04,0.00017957,2]
[367527701,1750845044629,-1220.5,0.00017957,2]
[367527702,1750845044638,-480.23,0.00017957,2]
[367527703,1750845044652,-151.11,0.00017958,2]
[367527704,1750845044663,-647.14,0.00017958,2]
[367527705,1750845044673,-510.52,0.00017958,2]
[367527706,1750845044683,-340.0,0.00017971,2]
[367527707,1750845044694,-151.0,0.00018,2]
[367527708,1750845044703,-5888.0,0.00018044,2]
[367527709,1750845044715,-213.69531788,0.0001805,2]
[367527710,1750845044727,-425.18553072,0.0001805,2]
[367527711,1750845044737,-160.0,0.0001805,2]
[367527712,1750845044747,-230.22714675,0.0001805,2]
[367527713,1750845044757,-160.0,0.0001805,2]
[367527714,1750845044766,-524.21181985,0.0001805,2]
[367527715,1750845044776,-846.80634355,0.0001805,2]
[367527716,1750845044786,-160.0,0.0001805,2]
[367527717,1750845044795,-836.86812089,0.0001805,2]
[367527718,1750845044805,-12558.06783089,0.0001805,2]
[367527719,1750845044815,-160.0,0.00018053,2]
[367527720,1750845044825,-160.0,0.00018053,2]
[367527721,1750845044834,-160.0,0.00018053,2]
[367527722,1750845044844,-160.0,0.00018053,2]
[367527723,1750845044853,-160.0,0.00018053,2]
[367527724,1750845044863,-500.0,0.00018068,2]
[367527725,1750845044872,-1000.0,0.0001808,2]
[367527726,1750845044882,-158.7566926,0.00018082,2]
[367527727,1750845044891,-1000.0,0.00018095,2]
[367527728,1750845044900,-1000.0,0.00018095,2]
[367527729,1750845044909,-908.53547415,0.00018112,2]
[367527730,1750845044918,-500.0,0.00018116,2]
[367527731,1750845044928,-502.51720373,0.00018116,2]
[367527732,1750845044937,-1000.0,0.00018119,2]
[367527733,1750845044946,-12997.82583214,0.00018141,2]
[367527734,1750845044955,-151.0,0.000182,2]
[367527735,1750845044964,-81184.90574457,0.000182,2]
[367527736,1750845044974,-460.0,0.00018229,2]
[367527737,1750845044983,-1810.61,0.00018229,2]
[367527738,1750845044992,-1769.19,0.00018229,2]
[367527739,1750845045002,-522.63,0.00018229,2]
[367527740,1750845045011,-1268.36,0.00018229,2]
[367527741,1750845045021,-460.0,0.00018229,2]
[367527742,1750845045030,-1295.58,0.00018229,2]
[367527743,1750845045040,-513.43,0.00018229,2]
[367527744,1750845045050,-491.11,0.00018229,2]
[367527745,1750845045059,-460.0,0.00018229,2]
[367527746,1750845045068,-1436.98,0.00018229,2]
[367527747,1750845045077,-558.72,0.0001823,2]
[367527748,1750845045087,-460.0,0.0001823,2]
[367527749,1750845045097,-4462.47,0.0001823,2]
[367527750,1750845045106,-355.08,0.0001823,2]
[367527751,1750845045115,-529.12,0.0001823,2]
[367527752,1750845045127,-460.0,0.0001823,2]
[367527753,1750845045136,-460.0,0.0001823,2]
[367527754,1750845045145,-460.0,0.0001823,2]
[367527755,1750845045154,-929.87,0.00018231,2]
[367527756,1750845045163,-460.0,0.00018231,2]
[367527757,1750845045173,-460.0,0.00018231,2]
[367527758,1750845045183,-618.94,0.00018231,2]
[367527759,1750845045192,-460.0,0.00018231,2]
[367527760,1750845045202,-1512.44,0.00018231,2]
[367527761,1750845045211,-3230.87,0.00018231,2]
[367527763,1750845045220,-756.04,0.00018231,2]
[367527764,1750845045229,-1220.5,0.00018231,2]
[367527765,1750845045239,-480.23,0.00018231,2]
[367527766,1750845045248,-647.14,0.00018232,2]
[367527767,1750845045257,-153.488293,0.00018234,2]
[367527769,1750845045266,-151.0,0.00018234,2]
[367527771,1750845045275,-151.0,0.00018234,2]
[367527772,1750845045285,-151.0,0.00018234,2]
[367527774,1750845045294,-151.0,0.00018234,2]
[367527775,1750845045302,-151.0,0.00018234,2]
[367527776,1750845045311,-217.142211,0.00018234,2]
[367527777,1750845045320,-217.142211,0.00018234,2]
[367527778,1750845045329,-250.0,0.00018247,2]
[367527779,1750845045338,-1000.0,0.00018302,2]
[367527780,1750845045347,-1511.55355153,0.00018339,2]
[367527781,1750845045356,-200.8096727,0.00018365,2]
[367527783,1750845045365,-12997.82583214,0.00018383,2]
[367527784,1750845045374,-218.04,0.00018383,2]
[367527785,1750845045383,-151.0,0.00018383,2]
[367527786,1750845045393,-180.0,0.000184,2]
[367527787,1750845045403,-2165.38291254,0.00018406,2]
[367527788,1750845045413,-420.0,0.00018414,2]
[367527790,1750845045423,-420.0,0.00018414,2]
[367527791,1750845045432,-1680.0,0.00018415,2]
[367527793,1750845045441,-302.99578303,0.00018447,2]
[367527795,1750845045450,-160.0,0.00018463,3]
[367527797,1750845045460,-151.0,0.000185,2]
[367527799,1750845045469,-460.0,0.00018503,2]
[367527801,1750845045478,-1810.61,0.00018503,2]
[367527803,1750845045487,-1769.19,0.00018503,2]
[367527805,1750845045496,-522.63,0.00018503,2]
[367527807,1750845045506,-1268.36,0.00018503,2]
[367527809,1750845045515,-460.0,0.00018503,2]
[367527811,1750845045524,-1295.58,0.00018503,2]
[367527813,1750845045534,-513.43,0.00018503,2]
[367527815,1750845045543,-491.11,0.00018503,2]
[367527817,1750845045552,-460.0,0.00018503,2]
[367527819,1750845045562,-1436.98,0.00018503,2]
[367527821,1750845045571,-460.0,0.00018504,2]
[367527823,1750845045580,-4462.47,0.00018504,2]
[367527825,1750845045589,-529.12,0.00018504,2]
[367527827,1750845045598,-460.0,0.00018504,2]
[367527829,1750845045607,-460.0,0.00018504,2]
[367527831,1750845045616,-460.0,0.00018504,2]
[367527832,1750845045625,-929.87,0.00018505,2]
[367527834,1750845045634,-460.0,0.00018505,2]
[367527836,1750845045644,-460.0,0.00018505,2]
[367527837,1750845045653,-618.94,0.00018505,2]
[367527838,1750845045662,-460.0,0.00018505,2]
[367527839,1750845045671,-1512.44,0.00018505,2]
[367527840,1750845045679,-3230.87,0.00018505,2]
[367527841,1750845045689,-756.04,0.00018505,2]
[367527842,1750845045698,-1220.5,0.00018505,2]
[367527843,1750845045707,-480.23,0.00018505,2]
[367527844,1750845045716,-647.14,0.00018506,2]
[367527845,1750845045726,-747.0,0.00018506,2]
[367527846,1750845045735,-151.757897,0.00018507,2]
[367527847,1750845045744,-615.0,0.00018516,2]
[367527848,1750845045754,-151.0,0.00018593,2]
[367527849,1750845045763,-12997.82583214,0.00018624,2]
[367527850,1750845045772,-1500.0,0.00018628,2]
[367527851,1750845045782,-1500.0,0.00018643,2]
[367527852,1750845045791,-1000.0,0.00018643,2]
[367527853,1750845045800,-151.0,0.00018659,2]
[367527854,1750845045810,-151.0,0.00018659,2]
[367527855,1750845045820,-193.425498,0.00018659,2]
[367527856,1750845045829,-193.425498,0.00018659,2]
[367527857,1750845045839,-151.0,0.00018659,2]
[367527858,1750845045848,-151.0,0.00018659,2]
[367527859,1750845045858,-207.68887,0.00018659,2]
[367527860,1750845045867,-151.0,0.00018659,2]
[367527861,1750845045877,-151.0,0.00018659,2]
[367527862,1750845045886,-548.29212,0.00018659,2]
[367527863,1750845045895,-548.29212,0.00018659,2]
[367527865,1750845045905,-217.142211,0.00018659,2]
[367527866,1750845045914,-217.142211,0.00018659,2]
[367527867,1750845045924,-151.575806,0.00018659,2]
[367527868,1750845045934,-151.0,0.00018659,2]
[367527869,1750845045943,-151.0,0.00018659,2]
[367527870,1750845045953,-151.0,0.00018659,2]
[367527871,1750845045963,-151.323677,0.00018659,2]
[367527872,1750845045973,-151.0,0.00018659,2]
[367527873,1750845045982,-223.040346,0.00018659,2]
[367527874,1750845045992,-223.040346,0.00018659,2]
[367527875,1750845046117,-1969.476509,0.00018659,2]
[367527876,1750845046128,-1969.476509,0.00018659,2]
[367527877,1750845046138,-151.0,0.00018659,2]
[367527878,1750845046147,-151.0,0.00018659,2]
[367527879,1750845046156,-151.0,0.00018659,2]
[367527880,1750845046165,-151.0,0.00018659,2]